fUSD/lending_fUSD_20240426
["ID","MTS","AMOUNT","RATE_DAILY","PERIOD"]
[323691776,1714165886094,-151.0,0.00013699,2]
[323691777,1714165886106,-156.695796,0.00013699,2]
[323691778,1714165886116,-299.639523,0.00013699,2]
[323691779,1714165886126,-299.639523,0.00013699,2]
[323691780,1714165886136,-299.639523,0.00013699,2]
[323691781,1714165886146,-299.639523,0.00013699,2]
[323691782,1714165886156,-299.639523,0.00013699,2]
[323691783,1714165886166,-299.639523,0.00013699,2]
[323691784,1714165886175,-299.639523,0.00013699,2]
[323691785,1714165886185,-299.639523,0.00013699,2]
[323691786,1714165886194,-299.639523,0.00013699,2]
[323691787,1714165886204,-299.639523,0.00013699,2]
[323691788,1714165886213,-299.639523,0.00013699,2]
[323691789,1714165886222,-299.639523,0.00013699,2]
[323691790,1714165886231,-299.639523,0.00013699,2]
[323691791,1714165886241,-299.639523,0.00013699,2]
[323691792,1714165886250,-299.639523,0.00013699,2]
[323691793,1714165886259,-299.639523,0.00013699,2]
[323691794,1714165886269,-299.639523,0.00013699,2]
[323691795,1714165886278,-299.639523,0.00013699,2]
[323691796,1714165886291,-299.639523,0.00013699,2]
[323691797,1714165886302,-299.639522,0.00013699,2]
[323691798,1714165886313,-151.0,0.00013699,2]
[323691799,1714165886323,-151.0,0.00013699,2]
[323691800,1714165886335,-204.663749,0.00013699,2]
[323691801,1714165886345,-204.663749,0.00013699,2]
[323691802,1714165886355,-204.663749,0.00013699,2]
[323691803,1714165886367,-204.663749,0.00013699,2]
[323691804,1714165886376,-204.663749,0.00013699,2]
[323691805,1714165886386,-204.663749,0.00013699,2]
[323691806,1714165886395,-204.663749,0.00013699,2]
[323691807,1714165886404,-204.663749,0.00013699,2]
[323691808,1714165886413,-204.663749,0.00013699,2]
[323691809,1714165886424,-204.663749,0.00013699,2]
[323691810,1714165886434,-204.663749,0.00013699,2]
[323691811,1714165886444,-204.663749,0.00013699,2]
[323691812,1714165886454,-204.663749,0.00013699,2]
[323691813,1714165886464,-204.663749,0.00013699,2]
[323691814,1714165886474,-204.663749,0.00013699,2]
[323691815,1714165886483,-204.663749,0.00013699,2]
[323691816,1714165886492,-204.663749,0.00013699,2]
[323691817,1714165886502,-204.663749,0.00013699,2]
[323691818,1714165886511,-204.663749,0.00013699,2]
[323691819,1714165886520,-204.663749,0.00013699,2]
[323691820,1714165886530,-245.135953,0.00013699,2]
[323691821,1714165886539,-245.135953,0.00013699,2]
[323691822,1714165886549,-245.135953,0.00013699,2]
[323691823,1714165886559,-245.135953,0.00013699,2]
[323691824,1714165886569,-245.135953,0.00013699,2]
[323691825,1714165886578,-245.135953,0.00013699,2]
[323691826,1714165886588,-245.135953,0.00013699,2]
[323691827,1714165886597,-245.135953,0.00013699,2]
[323691828,1714165886607,-245.135953,0.00013699,2]
[323691829,1714165886617,-245.135953,0.00013699,2]
[323691830,1714165886628,-245.135953,0.00013699,2]
[323691831,1714165886637,-245.135953,0.00013699,2]
[323691832,1714165886647,-245.135953,0.00013699,2]
[323691833,1714165886657,-245.135953,0.00013699,2]
[323691834,1714165886667,-245.135953,0.00013699,2]
[323691835,1714165886677,-245.135953,0.00013699,2]
[323691836,1714165886687,-245.135953,0.00013699,2]
[323691837,1714165886697,-245.135953,0.00013699,2]
[323691838,1714165886707,-245.135953,0.00013699,2]
[323691839,1714165886716,-245.135958,0.00013699,2]
[323691840,1714165886725,-154.242716,0.00013699,2]
[323691841,1714165886735,-151.0,0.00013699,2]
[323691842,1714165886744,-151.0,0.00013699,2]
[323691843,1714165886754,-151.0,0.00013699,2]
[323691844,1714165886763,-151.0,0.00013699,2]
[323691845,1714165886773,-151.0,0.00013699,2]
[323691846,1714165886783,-151.0,0.00013699,2]
[323691847,1714165886793,-151.0,0.00013699,2]
[323691848,1714165886804,-151.0,0.00013699,2]
[323691849,1714165886817,-151.0,0.00013699,2]
[323691850,1714165886827,-151.0,0.00013699,2]
[323691851,1714165886837,-248.369612,0.00013699,2]
[323691852,1714165886847,-151.0,0.00013699,2]
[323691853,1714165886857,-151.0,0.00013699,2]
[323691854,1714165886869,-151.0,0.00013699,2]
[323691855,1714165886879,-151.0,0.00013699,2]
[323691856,1714165886888,-151.0,0.00013699,2]
[323691857,1714165886898,-151.0,0.00013699,2]
[323691858,1714165886908,-151.0,0.00013699,2]
[323691859,1714165886919,-151.0,0.00013699,2]
[323691860,1714165886929,-151.0,0.00013699,2]
[323691861,1714165886940,-151.0,0.00013699,2]
[323691862,1714165886950,-233.575209,0.00013699,2]
[323691863,1714165886960,-250.0,0.00013699,2]
[323691864,1714165886970,-151.0,0.00013699,2]
[323691865,1714165886980,-151.0,0.00013699,2]
[323691866,1714165886990,-151.0,0.00013699,2]
[323691867,1714165887001,-151.0,0.00013699,2]
[323691868,1714165887011,-151.0,0.00013699,2]
[323691869,1714165887021,-151.0,0.00013699,2]
[323691870,1714165887031,-151.0,0.00013699,2]
[323691871,1714165887040,-151.0,0.00013699,2]
[323691872,1714165887051,-186.095901,0.00013699,2]
[323691873,1714165887061,-151.0,0.00013699,2]
[323691874,1714165887071,-213.060866,0.00013699,2]
[323691875,1714165887081,-151.0,0.00013699,2]
[323691876,1714165887091,-151.0,0.00013699,2]
[323691877,1714165887101,-151.0,0.00013699,2]
[323691878,1714165887111,-151.0,0.00013699,2]
[323691879,1714165887121,-151.0,0.00013699,2]
[323691880,1714165887130,-151.0,0.00013699,2]
[323691881,1714165887141,-151.0,0.00013699,2]
[323691882,1714165887150,-151.0,0.00013699,2]
[323691883,1714165887160,-229.215,0.00013699,2]
[323691884,1714165887169,-200.0,0.00013699,2]
[323691885,1714165887179,-1000.0,0.00013699,2]
[323691886,1714165887188,-151.0,0.00013699,2]
[323691887,1714165887198,-170.258817,0.00013699,2]
[323691888,1714165887207,-500.0,0.00013699,2]
[323691889,1714165887218,-207.71,0.00013699,2]
[323691890,1714165887228,-151.0,0.00013699,2]
[323691891,1714165887238,-151.0,0.00013699,2]
[323691892,1714165887249,-168.257593,0.00013699,2]
[323691893,1714165887260,-151.0,0.00013699,2]
[323691894,1714165887269,-151.0,0.00013699,2]
[323691895,1714165887279,-151.0,0.00013699,2]
[323691896,1714165887291,-151.0,0.00013699,2]
[323691897,1714165887302,-151.0,0.00013699,2]
[323691898,1714165887312,-151.0,0.00013699,2]
[323691899,1714165887322,-339.534527,0.00013699,2]
[323691900,1714165887335,-339.534527,0.00013699,2]
[323691901,1714165887345,-339.534527,0.00013699,2]
[323691902,1714165887355,-339.534527,0.00013699,2]
[323691903,1714165887368,-339.534527,0.00013699,2]
[323691904,1714165887378,-339.534527,0.00013699,2]
[323691905,1714165887388,-339.534527,0.00013699,2]
[323691906,1714165887398,-158.179536,0.00013699,2]
[323691907,1714165887407,-339.534527,0.00013699,2]
[323691908,1714165887417,-158.179536,0.00013699,2]
[323691909,1714165887427,-158.179536,0.00013699,2]
[323691910,1714165887440,-339.534527,0.00013699,2]
[323691911,1714165887450,-158.179536,0.00013699,2]
[323691912,1714165887462,-339.534527,0.00013699,2]
[323691913,1714165887473,-158.179536,0.00013699,2]
[323691914,1714165887484,-339.534527,0.00013699,2]
[323691915,1714165887494,-158.179536,0.00013699,2]
[323691916,1714165887504,-339.534527,0.00013699,2]
[323691917,1714165887515,-158.179536,0.00013699,2]
[323691918,1714165887526,-158.179536,0.00013699,2]
[323691919,1714165887537,-339.534527,0.00013699,2]
[323691920,1714165887548,-158.179536,0.00013699,2]
[323691921,1714165887559,-339.534527,0.00013699,2]
[323691922,1714165887570,-158.179536,0.00013699,2]
[323691923,1714165887580,-339.534527,0.00013699,2]
[323691924,1714165887591,-158.179536,0.00013699,2]
[323691925,1714165887603,-339.534527,0.00013699,2]
[323691926,1714165887614,-158.179536,0.00013699,2]
[323691927,1714165887624,-339.534527,0.00013699,2]
[323691928,1714165887634,-158.179536,0.00013699,2]
[323691929,1714165887644,-339.534527,0.00013699,2]
[323691930,1714165887655,-339.534527,0.00013699,2]
[323691931,1714165887665,-158.179536,0.00013699,2]
[323691932,1714165887676,-339.534521,0.00013699,2]
[323691933,1714165887686,-158.179536,0.00013699,2]
[323691934,1714165887697,-158.179536,0.00013699,2]
[323691935,1714165887708,-158.179536,0.00013699,2]
[323691936,1714165887719,-158.179536,0.00013699,2]
[323691937,1714165887730,-158.179536,0.00013699,2]
[323691938,1714165887741,-158.179528,0.00013699,2]
[323691939,1714165887753,-159.426915,0.00013699,2]
[323691940,1714165887767,-159.426915,0.00013699,2]
[323691941,1714165887777,-159.426915,0.00013699,2]
[323691942,1714165887789,-159.426915,0.00013699,2]
[323691943,1714165887800,-159.426915,0.00013699,2]
[323691944,1714165887810,-159.426915,0.00013699,2]
[323691945,1714165887820,-159.426915,0.00013699,2]
[323691946,1714165887831,-159.426915,0.00013699,2]
[323691947,1714165887841,-159.426915,0.00013699,2]
[323691948,1714165887851,-159.426915,0.00013699,2]
[323691949,1714165887861,-159.426915,0.00013699,2]
[323691950,1714165887871,-159.426915,0.00013699,2]
[323691951,1714165887881,-159.426915,0.00013699,2]
[323691952,1714165887891,-159.426915,0.00013699,2]
[323691953,1714165887902,-159.426915,0.00013699,2]
[323691954,1714165887911,-159.426915,0.00013699,2]
[323691955,1714165887922,-159.426915,0.00013699,2]
[323691956,1714165887932,-159.426915,0.00013699,2]
[323691957,1714165887942,-159.426915,0.00013699,2]
[323691958,1714165887952,-159.426916,0.00013699,2]
[323691959,1714165887962,-151.0,0.00013699,2]
[323691960,1714165887971,-151.0,0.00013699,2]
[323691961,1714165887982,-151.0,0.00013699,2]
[323691962,1714165887993,-151.0,0.00013699,2]
[323691963,1714165888003,-151.0,0.00013699,2]
[323691964,1714165888014,-151.0,0.00013699,2]
[323691965,1714165888024,-173.406366,0.00013699,2]
[323691966,1714165888035,-151.0,0.00013699,2]
[323691967,1714165888046,-151.0,0.00013699,2]
[323691968,1714165888056,-151.0,0.00013699,2]
[323691969,1714165888065,-151.0,0.00013699,2]
[323691970,1714165888075,-151.0,0.00013699,2]
[323691971,1714165888085,-151.0,0.00013699,2]
[323691972,1714165888095,-151.0,0.00013699,2]
[323691973,1714165888105,-151.0,0.00013699,2]
[323691974,1714165888114,-151.0,0.00013699,2]
[323691975,1714165888124,-151.0,0.00013699,2]
[323691976,1714165888134,-151.0,0.00013699,2]
[323691977,1714165888144,-151.0,0.00013699,2]
[323691978,1714165888153,-151.0,0.00013699,2]
[323691979,1714165888163,-164.402703,0.00013699,2]
[323691980,1714165888172,-312.461181,0.00013699,2]
[323691981,1714165888182,-312.461181,0.00013699,2]
[323691982,1714165888191,-312.461181,0.00013699,2]
[323691983,1714165888200,-312.461181,0.00013699,2]
[323691984,1714165888210,-312.461181,0.00013699,2]
[323691985,1714165888219,-312.461181,0.00013699,2]
[323691986,1714165888229,-312.461181,0.00013699,2]
[323691987,1714165888238,-312.461181,0.00013699,2]
[323691988,1714165888247,-312.461181,0.00013699,2]
[323691989,1714165888257,-312.461181,0.00013699,2]
[323691990,1714165888266,-312.461181,0.00013699,2]
[323691991,1714165888275,-312.461181,0.00013699,2]
[323691992,1714165888285,-312.461181,0.00013699,2]
[323691993,1714165888296,-312.461181,0.00013699,2]
[323691994,1714165888306,-312.461181,0.00013699,2]
[323691995,1714165888315,-312.461181,0.00013699,2]
[323691996,1714165888326,-312.461181,0.00013699,2]
[323691997,1714165888336,-312.461181,0.00013699,2]
[323691998,1714165888603,-312.461181,0.00013699,2]
[323691999,1714165888613,-312.46119,0.00013699,2]
[323692000,1714165888622,-151.0,0.00013699,2]
[323692001,1714165888631,-151.0,0.00013699,2]
[323692002,1714165888641,-151.0,0.00013699,2]
[323692003,1714165888650,-151.0,0.00013699,2]
[323692004,1714165888659,-151.0,0.00013699,2]
[323692005,1714165888669,-151.0,0.00013699,2]
[323692006,1714165888678,-151.0,0.00013699,2]
[323692007,1714165888688,-151.0,0.00013699,2]
[323692008,1714165888698,-237.457088,0.00013699,2]
[323692009,1714165888707,-151.0,0.00013699,2]
[323692010,1714165888717,-151.0,0.00013699,2]
[323692011,1714165888727,-293.324838,0.00013699,2]
[323692012,1714165888737,-151.0,0.00013699,2]
[323692013,1714165888747,-151.0,0.00013699,2]
[323692014,1714165888756,-151.0,0.00013699,2]
[323692015,1714165888766,-151.0,0.00013699,2]
[323692016,1714165888776,-151.0,0.00013699,2]
[323692017,1714165888785,-151.0,0.00013699,2]
[323692018,1714165888795,-151.0,0.00013699,2]
[323692019,1714165888807,-657.159554,0.00013699,2]
[323692020,1714165888817,-657.159554,0.00013699,2]
[323692021,1714165888827,-657.159554,0.00013699,2]
[323692022,1714165888837,-657.159554,0.00013699,2]
[323692023,1714165888846,-657.159554,0.00013699,2]
[323692024,1714165888855,-657.159554,0.00013699,2]
[323692025,1714165888865,-657.159554,0.00013699,2]
[323692026,1714165888874,-657.159554,0.00013699,2]
[323692027,1714165888884,-657.159554,0.00013699,2]
[323692028,1714165888894,-657.159554,0.00013699,2]
[323692029,1714165888904,-230.065729,0.00013699,2]
[323692030,1714165888913,-657.159554,0.00013699,2]
[323692031,1714165888922,-230.065729,0.00013699,2]
[323692032,1714165888932,-657.159554,0.00013699,2]
[323692033,1714165888942,-230.065729,0.00013699,2]
[323692034,1714165888952,-657.159554,0.00013699,2]
[323692035,1714165888962,-230.065729,0.00013699,2]
[323692036,1714165888971,-657.159554,0.00013699,2]
[323692037,1714165888981,-230.065729,0.00013699,2]
[323692038,1714165888991,-657.159554,0.00013699,2]
[323692039,1714165889000,-230.065729,0.00013699,2]
[323692040,1714165889010,-657.159554,0.00013699,2]
[323692041,1714165889020,-230.065729,0.00013699,2]
[323692042,1714165889029,-657.159554,0.00013699,2]
[323692043,1714165889038,-657.159554,0.00013699,2]
[323692044,1714165889048,-230.065729,0.00013699,2]
[323692045,1714165889059,-657.159554,0.00013699,2]
[323692046,1714165889069,-657.159547,0.00013699,2]
[323692047,1714165889078,-230.065729,0.00013699,2]
[323692048,1714165889088,-230.065729,0.00013699,2]
[323692049,1714165889097,-230.065729,0.00013699,2]
[323692050,1714165889106,-230.065729,0.00013699,2]
[323692051,1714165889116,-230.065729,0.00013699,2]
[323692052,1714165889125,-230.065729,0.00013699,2]
[323692053,1714165889134,-230.065729,0.00013699,2]
[323692054,1714165889144,-230.065729,0.00013699,2]
[323692055,1714165889153,-151.0,0.00013699,2]
[323692056,1714165889163,-230.065729,0.00013699,2]
[323692057,1714165889172,-230.065729,0.00013699,2]
[323692058,1714165889182,-230.065729,0.00013699,2]
[323692059,1714165889191,-230.065723,0.00013699,2]
[323692060,1714165889202,-151.0,0.00013699,2]
[323692061,1714165889211,-151.0,0.00013699,2]
[323692062,1714165889221,-151.0,0.00013699,2]
[323692063,1714165889231,-151.0,0.00013699,2]
[323692064,1714165889241,-151.0,0.00013699,2]
[323692065,1714165889251,-151.0,0.00013699,2]
[323692066,1714165889260,-151.0,0.00013699,2]
[323692067,1714165889270,-151.0,0.00013699,2]
[323692068,1714165889279,-151.0,0.00013699,2]
[323692069,1714165889291,-151.0,0.00013699,2]
[323692070,1714165889301,-151.0,0.00013699,2]
[323692071,1714165889310,-151.0,0.00013699,2]
[323692072,1714165889320,-151.0,0.00013699,2]
[323692073,1714165889330,-151.0,0.00013699,2]
[323692074,1714165889340,-151.0,0.00013699,2]
[323692075,1714165889349,-151.0,0.00013699,2]
[323692076,1714165889359,-151.0,0.00013699,2]
[323692077,1714165889370,-151.0,0.00013699,2]
[323692078,1714165889380,-151.0,0.00013699,2]
[323692079,1714165889389,-151.0,0.00013699,2]
[323692080,1714165889399,-151.0,0.00013699,2]
[323692081,1714165889408,-151.0,0.00013699,2]
[323692082,1714165889417,-151.0,0.00013699,2]
[323692083,1714165889426,-151.0,0.00013699,2]
[323692084,1714165889436,-151.0,0.00013699,2]
[323692085,1714165889445,-151.0,0.00013699,2]
[323692086,1714165889455,-151.0,0.00013699,2]
[323692087,1714165889464,-151.0,0.00013699,2]
[323692088,1714165889473,-162.737045,0.00013699,2]
[323692089,1714165889482,-151.0,0.00013699,2]
[323692090,1714165889492,-151.0,0.00013699,2]
[323692091,1714165889501,-151.0,0.00013699,2]
[323692092,1714165889511,-151.0,0.00013699,2]
[323692093,1714165889520,-9774.75,0.00013699,2]
[323692094,1714165889529,-284.309838,0.00013699,2]
[323692095,1714165889538,-2751.0,0.00013699,2]
[323692096,1714165889548,-151.0,0.00013699,2]
[323692097,1714165889559,-244.151537,0.00013699,2]
[323692098,1714165889568,-1740.031655,0.00013699,2]
[323692099,1714165889577,-1740.031655,0.00013699,2]
[323692100,1714165889587,-1740.031655,0.00013699,2]
[323692101,1714165889596,-1740.031655,0.00013699,2]
[323692102,1714165889606,-1740.031655,0.00013699,2]
[323692103,1714165889616,-1740.031655,0.00013699,2]
[323692104,1714165889625,-1740.031655,0.00013699,2]
[323692105,1714165889635,-1740.031655,0.00013699,2]
[323692106,1714165889645,-1740.031655,0.00013699,2]
[323692107,1714165889654,-1740.031655,0.00013699,2]
[323692108,1714165889664,-1740.031655,0.00013699,2]
[323692109,1714165889673,-1740.031655,0.00013699,2]
[323692110,1714165889682,-1740.031655,0.00013699,2]
[323692111,1714165889691,-1740.031655,0.00013699,2]
[323692112,1714165889700,-3599.07,0.000137,2]
[323692113,1714165889710,-3599.07,0.000137,2]
[323692114,1714165889719,-3599.07,0.000137,2]
[323692115,1714165889729,-3599.07,0.000137,2]
[323692116,1714165889739,-3599.07,0.000137,2]
[323692117,1714165889748,-21746.55555,0.0001375,2]
[323692118,1714165889758,-208.770414,0.0001375,2]
[323692119,1714165889767,-201.073791,0.0001375,2]
[323692120,1714165889776,-14497.703699,0.0001375,2]
[323692121,1714165889786,-400.911725,0.0001375,2]
[323692122,1714165889795,-170.7,0.00013751,2]
[323692123,1714165889805,-3000.0,0.0001389,2]
[323692124,1714165889814,-1000.0,0.000139,3]
[323692125,1714165889824,-21746.55555,0.00013922,2]
[323692126,1714165889834,-14497.703699,0.00013922,2]
[323692127,1714165889843,-400.911725,0.00013922,2]
[323692128,1714165889852,-500.0,0.00013951,2]
[323692129,1714165889862,-500.0,0.0001396,2]
[323692130,1714165889871,-500.0,0.0001396,2]
[323692131,1714165889880,-500.0,0.00013972,2]
[323692132,1714165889890,-552.69,0.00013972,2]
[323692133,1714165889899,-500.0,0.00013972,2]
[323692134,1714165889908,-487.19382801,0.00013972,2]
[323692135,1714165889917,-615.87,0.00013972,2]
[323692136,1714165889927,-500.0,0.00013972,2]
[323692137,1714165889936,-500.0,0.00013972,2]
[323692138,1714165889945,-500.0,0.00013972,2]
[323692139,1714165889955,-500.0,0.00013972,2]
[323692140,1714165889965,-609.49,0.00013972,2]
[323692141,1714165889976,-500.0,0.00013972,2]
[323692142,1714165889987,-654.47,0.00013972,2]
[323692143,1714165889996,-678.23,0.00013972,2]
[323692144,1714165890006,-613.12,0.00013972,2]
[323692145,1714165890017,-646.77,0.00013972,2]
[323692146,1714165890027,-530.65,0.00013972,2]
[323692147,1714165890038,-880.46,0.00013972,2]
[323692148,1714165890047,-1006.3,0.00013972,2]
[323692149,1714165890057,-500.0,0.00013972,2]
[323692150,1714165890067,-500.0,0.00013972,2]
[323692151,1714165890077,-1261.56,0.00013972,2]
[323692152,1714165890087,-1360.51,0.00013972,2]
[323692153,1714165890097,-504.93,0.00013972,2]
[323692154,1714165890106,-1108.07,0.00013972,2]
[323692155,1714165890115,-500.0,0.00013972,2]
[323692156,1714165890125,-822.7,0.00013972,2]
[323692157,1714165890135,-543.02,0.00013972,2]
[323692158,1714165890145,-500.0,0.00013972,2]
[323692159,1714165890155,-1146.38,0.00013972,2]
[323692160,1714165890164,-1304.31,0.00013972,2]
[323692161,1714165890173,-560.91,0.00013972,2]
[323692162,1714165890183,-500.0,0.00013972,2]
[323692163,1714165890193,-500.0,0.00013972,2]
[323692164,1714165890202,-500.0,0.00013972,2]
[323692165,1714165890212,-921.09,0.00013972,2]
[323692166,1714165890222,-500.0,0.00013972,2]
[323692167,1714165890232,-700.07,0.00013972,2]
[323692168,1714165890241,-1367.84,0.00013972,2]
[323692169,1714165890251,-748.97,0.00013972,2]
[323692170,1714165890260,-760.98,0.00013972,2]
[323692171,1714165890270,-500.0,0.00013972,2]
[323692172,1714165890279,-726.54,0.00013972,2]
[323692173,1714165890292,-550.92,0.00013972,2]
[323692174,1714165890302,-1430.99,0.00013972,2]
[323692175,1714165890312,-570.48,0.00013972,2]
[323692176,1714165890321,-676.01,0.00013972,2]
[323692177,1714165890330,-500.0,0.00013972,2]
[323692178,1714165890340,-500.0,0.00013972,2]
[323692179,1714165890349,-1217.26,0.00013972,2]
[323692180,1714165890358,-792.02,0.00013972,2]
[323692181,1714165890368,-500.0,0.00013972,2]
[323692182,1714165890379,-371.46232581,0.00013972,2]
[323692183,1714165890389,-500.0,0.00013972,2]
[323692184,1714165890399,-725.24,0.00013972,2]
[323692185,1714165890410,-279.4,0.00013972,2]
[323692186,1714165890419,-872.88,0.00013972,2]
[323692187,1714165890429,-940.41,0.00013972,2]
[323692188,1714165890439,-2000.0,0.00013972,2]
[323692189,1714165890449,-509.95,0.00013972,2]
[323692190,1714165890458,-803.02,0.00013972,2]
[323692191,1714165890468,-363.21,0.00013972,2]
[323692192,1714165890478,-500.0,0.00013972,2]
[323692193,1714165890487,-749.95,0.00013972,2]
[323692194,1714165890497,-527.35,0.00013972,2]
[323692195,1714165890507,-500.0,0.00013972,2]
[323692196,1714165890516,-565.11,0.00013972,2]
[323692197,1714165890526,-656.68,0.00013972,2]
[323692198,1714165890535,-500.0,0.00013972,2]
[323692199,1714165890544,-626.53,0.00013972,2]
[323692200,1714165890554,-1008.89,0.00013972,2]
[323692201,1714165890563,-500.0,0.00013972,2]
[323692202,1714165890572,-837.59,0.00013972,2]
[323692203,1714165890582,-525.53,0.00013972,2]
[323692204,1714165890591,-1849.17,0.00013972,2]
[323692205,1714165890600,-565.57,0.00013972,2]
[323692206,1714165890609,-500.0,0.00013972,2]
[323692207,1714165890619,-1095.79,0.00013972,2]
[323692208,1714165890628,-500.0,0.00013972,2]
[323692209,1714165890637,-1100.72,0.00013972,2]
[323692210,1714165890646,-500.0,0.00013972,2]
[323692211,1714165890655,-500.0,0.00013972,2]
[323692212,1714165890664,-609.39,0.00013972,2]
[323692213,1714165890673,-500.0,0.00013972,2]
[323692214,1714165890682,-1415.44,0.00013972,2]
[323692215,1714165890691,-721.08,0.00013972,2]
[323692216,1714165890700,-500.0,0.00013972,2]
[323692217,1714165890710,-521.34,0.00013972,2]
[323692218,1714165890719,-5617.73,0.00013972,2]
[323692219,1714165890728,-8630.93,0.00013972,2]
[323692220,1714165890737,-1052.38,0.00013972,2]
[323692221,1714165890746,-500.0,0.00013972,2]
[323692222,1714165890756,-1229.82,0.00013972,2]
[323692223,1714165890766,-6867.51,0.00013972,2]
[323692224,1714165890775,-600.27,0.00013972,2]
[323692225,1714165890784,-1794.51,0.00013972,2]
[323692226,1714165890793,-7720.32,0.00013972,2]
[323692227,1714165890802,-1596.74,0.00013972,2]
[323692228,1714165890812,-2414.19,0.00013972,2]
[323692229,1714165890822,-500.0,0.00013972,2]
[323692230,1714165890831,-2546.68,0.00013972,2]
[323692231,1714165890840,-11893.77,0.00013972,2]
[323692232,1714165890849,-500.0,0.00013972,2]
[323692233,1714165890858,-500.0,0.00013972,2]
[323692234,1714165890868,-1472.99,0.00013972,2]
[323692235,1714165890937,-1714.54,0.00013972,2]
[323692236,1714165890947,-500.0,0.00013972,2]
[323692237,1714165890956,-3379.18,0.00013972,2]
[323692238,1714165890965,-746.33,0.00013972,2]
[323692239,1714165890975,-500.0,0.00013972,2]
[323692240,1714165890984,-1131.17,0.00013972,2]
[323692241,1714165890993,-500.0,0.00013972,2]
[323692242,1714165891003,-1362.32,0.00013972,2]
[323692243,1714165891013,-635.79,0.00013972,2]
[323692244,1714165891022,-1226.03,0.00013972,2]
[323692245,1714165891032,-1261.3,0.00013972,2]
[323692246,1714165891041,-2565.0,0.00013972,2]
[323692247,1714165891051,-6474.87,0.00013972,2]
[323692248,1714165891061,-626.49,0.00013972,2]
[323692249,1714165891070,-5265.92,0.00013972,2]
[323692250,1714165891080,-7575.76,0.00013972,2]
[323692251,1714165891089,-959.47,0.00013972,2]
[323692252,1714165891098,-500.0,0.00013972,2]
[323692253,1714165891108,-894.84,0.00013972,2]
[323692254,1714165891117,-1029.44,0.00013972,2]
[323692255,1714165891126,-1594.94,0.00013972,2]
[323692256,1714165891135,-1585.92,0.00013972,2]
[323692257,1714165891143,-927.21,0.00013972,2]
[323692258,1714165891153,-29278.54,0.00013972,2]
[323692259,1714165891161,-598.42,0.00013972,2]
[323692260,1714165891170,-2169.32,0.00013972,2]
[323692261,1714165891179,-500.0,0.00013972,2]
[323692262,1714165891188,-1031.64,0.00013972,2]
[323692263,1714165891197,-3003.77,0.00013972,2]
[323692264,1714165891208,-500.0,0.00013972,2]
[323692265,1714165891217,-885.97,0.00013972,2]
[323692266,1714165891226,-1452.7,0.00013972,2]
[323692267,1714165891238,-500.0,0.00013972,2]
[323692268,1714165891248,-1299.05,0.00013972,2]
[323692269,1714165891257,-964.95,0.00013972,2]
[323692270,1714165891266,-6953.47,0.00013972,2]
[323692271,1714165891275,-598.29,0.00013972,2]
[323692272,1714165891284,-2182.8,0.00013972,2]
[323692273,1714165891298,-500.0,0.00013972,2]
[323692274,1714165891307,-1173.04,0.00013972,2]
[323692275,1714165891317,-2149.24,0.00013972,2]